Workbook

Sheet Directions
A1: Step through this file, from the tabs numbered 1) through 8) and perform the statistical analysis as described.
A2: Turn in the answers to all of these exercises along with the answers to the quiz at the end.
A4: Where indicated place your answers in the yellow cells.

Sheet 1) Ttest1
A1: Problem 1 | B1: The data set below represents the heights of male and female students in inches. Use a Student's T-test to determine
B2: whether the difference in height between the two populations is statistically significant. Because you
B3: predicted that the height of female students would be less than the height of male students, you should use
B4: a one-tailed test. Assume that there the males and females are not paired through any considerations and that the
B5: standard deviations of the two data sets are the same.
B6: Specifically answer the two questions highlighted in yellow in the space provided.
A8: Height (Inches)
A9: Women | B9: Men
A10: 63.00137776 | B10: 62.78589233
A11: 63.02118035 | B11: 64.09129956
A12: 64.19921322 | B12: 65.60934277
A13: 67.32412938 | B13: 63.58248674
A14: 64.61896273 | B14: 71.15962196
A15: 63.23154549 | B15: 66.43394202
A16: 67.38965956 | B16: 66.4412554
A17: 62.40503628 | B17: 61.0214662
A18: 65.11086577 | B18: 64.10929036
A19: 63.60539552 | B19: 69.97750285
A20: 59.04846274 | B20: 67.15506699
A21: 60.45433708 | B21: 66.53369984
A22: 60.89368185 | B22: 63.67534671
A23: 66.29292663 | B23: 66.15267424
A24: 62.95392453 | B24: 63.13798595
A25: 64.74143105 | B25: 70.1543202
A26: 68.40144347 | B26: 68.28180875
A27: 64.57157919 | B27: 64.32127629 | D27: The p-value for this data set is
A28: 62.07318642 | B28: 66.52551293 | D28: Is the difference in the means statistically significant?
A29: 61.62212486 | B29: 69.15298814
A30: 69.86073723 | B30: 64.45123948
A31: 58.01865986 | B31: 60.44698112
A32: 69.78983863 | B32: 70.61514404
A33: 69.14460429 | B33: 70.69815901
A34: 68.85834379 | B34: 63.97463561
A35: 62.66470457 | B35: 62.6407307
A36: 63.71768521 | B36: 61.04101769
A37: 66.58923792 | B37: 70.84468619
A38: 59.76650483 | B38: 70.09164469
A39: 64.33683288 | B39: 71.23712895
A40: 69.90619347 | B40: 62.48231659
A41: 62.08771003 | B41: 65.09722189
A42: 59.3003306 | B42: 64.16155614
A43: 67.32818236 | B43: 65.74245477
A44: 59.32870667 | B44: 63.09405092
A45: 58.68318088 | B45: 67.106249
A46: 67.20565272 | B46: 60.55451735
A47: 66.62679783 | B47: 62.09576702
A48: 63.57145099 | B48: 69.87396544
A49: 69.64736679 | B49: 63.71339188
A50: 66.9013926 | B50: 67.55822923
A51: 65.33304186 | B51: 64.91390342
A52: 69.37846828 | B52: 69.25993903
A53: 59.20587016 | B53: 60.44240959
A54: 67.81624408 | B54: 68.80531511
A55: 64.68550397 | B55: 66.75806377
A56: 60.08418493 | B56: 60.89759233
A57: 65.17486703 | B57: 71.32729739
A58: 60.71534308 | B58: 63.68355048
A59: 58.47439068 | B59: 61.31796536
A60: 64.86970351 | B60: 61.96814083
A61: 67.72278175 | B61: 61.86195576
A62: 60.62859194 | B62: 65.01309468
A63: 60.971216 | B63: 66.12290112
A64: 63.05634742 | B64: 67.99873987
A65: 69.12793559 | B65: 63.18551492
A66: 68.06412639 | B66: 69.66691164
A67: 59.77762739 | B67: 60.47022981
A68: 60.46086765 | B68: 69.84711577
A69: 61.73835915 | B69: 60.71567803
A70: 64.10204388 | B70: 63.45463551
A71: 67.44228889 | B71: 60.23083532
A72: 61.34678752 | B72: 68.35054995
A73: 66.29335028 | B73: 67.25552163
A74: 62.08128957 | B74: 70.52421983
A75: 65.41624962 | B75: 64.53031847
A76: 58.94258076 | B76: 64.80991733
A77: 61.4880163 | B77: 70.76049651
A78: 60.30989362 | B78: 62.12285488
A79: 67.76056134 | B79: 65.89229867
A80: 66.77712407 | B80: 67.26582068
A81: 67.61543444 | B81: 71.66158666
A82: 68.7833253 | B82: 60.73473923
A83: 63.45152172 | B83: 63.96407621
A84: 62.67044877 | B84: 61.7899333
A85: 69.54085648 | B85: 64.17945444
A86: 68.64834089 | B86: 67.84792779
A87: 62.4016962 | B87: 68.22939696
A88: 66.62513897 | B88: 63.05326151
A89: 69.3883657 | B89: 70.84304518
A90: 65.40198772 | B90: 61.52750771
A91: 67.15373739 | B91: 64.7887227
A92: 61.71169463 | B92: 67.28375183
A93: 66.58768018 | B93: 62.92599244
A94: 64.16464095 | B94: 67.58096082
A95: 60.26492331 | B95: 63.55499262
A96: 64.08461564 | B96: 70.58230456
A97: 68.12870091 | B97: 65.29157933
A98: 62.37061878 | B98: 67.96472327
A99: 63.47421972 | B99: 69.95525924
A100: 58.34442476 | B100: 67.64882558
A101: 60.19618956 | B101: 71.1264831
A102: 62.76428497 | B102: 61.01748983
A103: 67.80295027 | B103: 67.02356162
A104: 63.4254734 | B104: 61.95920116
A105: 61.74128444 | B105: 62.60547959
A106: 66.11242798 | B106: 68.14059724
A107: 60.36109634 | B107: 61.56122087
A108: 59.15683515 | B108: 65.41729673
A109: 58.33105477 | B109: 66.63050873
A110: 69.43981366 | B110: 69.37764828
A111: 66.66756571 | B111: 60.51080908
A112: 58.2053398 | B112: 66.46645236
A113: 65.61694334 | B113: 63.65408789
A114: 61.09666969 | B114: 68.90446968
A115: 68.14585909 | B115: 67.54154697
A116: 60.97639297 | B116: 61.15851152
A117: 58.60622462 | B117: 67.23946228
A118: 61.63839568 | B118: 69.45557149
A119: 64.02939756 | B119: 70.2277587
A120: =AVERAGE(A10:A119) -> 64.02424369 | B120: =AVERAGE(B10:B119) -> 65.71548958 | C120: Means
A121: =STDEV(A10:A119) -> 3.427193643 | B121: =STDEV(B10:B119) -> 3.339110788 | C121: St Devs

Sheet 2) F-Test
A1: Problem 2 | B1: Now use an F-test on the same data set to decide whether the standard deviations of the two data sets are equal.
B2: Specifically answer the two questions highlighted in yellow in the space provided.
A5: Height (Inches)
A6: Women | B6: Men
A7: 63.00137776 | B7: 62.78589233
A8: 63.02118035 | B8: 64.09129956
A9: 64.19921322 | B9: 65.60934277
A10: 67.32412938 | B10: 63.58248674
A11: 64.61896273 | B11: 71.15962196
A12: 63.23154549 | B12: 66.43394202
A13: 67.38965956 | B13: 66.4412554
A14: 62.40503628 | B14: 61.0214662
A15: 65.11086577 | B15: 64.10929036
A16: 63.60539552 | B16: 69.97750285
A17: 59.04846274 | B17: 67.15506699
A18: 60.45433708 | B18: 66.53369984
A19: 60.89368185 | B19: 63.67534671
A20: 66.29292663 | B20: 66.15267424
A21: 62.95392453 | B21: 63.13798595
A22: 64.74143105 | B22: 70.1543202
A23: 68.40144347 | B23: 68.28180875
A24: 64.57157919 | B24: 64.32127629
A25: 62.07318642 | B25: 66.52551293
A26: 61.62212486 | B26: 69.15298814
A27: 69.86073723 | B27: 64.45123948 | C27: The p-value for this data set is:
A28: 58.01865986 | B28: 60.44698112 | C28: Is the difference in the standard deviations statistically significant?
A29: 69.78983863 | B29: 70.61514404
A30: 69.14460429 | B30: 70.69815901
A31: 68.85834379 | B31: 63.97463561
A32: 62.66470457 | B32: 62.6407307
A33: 63.71768521 | B33: 61.04101769
A34: 66.58923792 | B34: 70.84468619
A35: 59.76650483 | B35: 70.09164469
A36: 64.33683288 | B36: 71.23712895
A37: 69.90619347 | B37: 62.48231659
A38: 62.08771003 | B38: 65.09722189
A39: 59.3003306 | B39: 64.16155614
A40: 67.32818236 | B40: 65.74245477
A41: 59.32870667 | B41: 63.09405092
A42: 58.68318088 | B42: 67.106249
A43: 67.20565272 | B43: 60.55451735
A44: 66.62679783 | B44: 62.09576702
A45: 63.57145099 | B45: 69.87396544
A46: 69.64736679 | B46: 63.71339188
A47: 66.9013926 | B47: 67.55822923
A48: 65.33304186 | B48: 64.91390342
A49: 69.37846828 | B49: 69.25993903
A50: 59.20587016 | B50: 60.44240959
A51: 67.81624408 | B51: 68.80531511
A52: 64.68550397 | B52: 66.75806377
A53: 60.08418493 | B53: 60.89759233
A54: 65.17486703 | B54: 71.32729739
A55: 60.71534308 | B55: 63.68355048
A56: 58.47439068 | B56: 61.31796536
A57: 64.86970351 | B57: 61.96814083
A58: 67.72278175 | B58: 61.86195576
A59: 60.62859194 | B59: 65.01309468
A60: 60.971216 | B60: 66.12290112
A61: 63.05634742 | B61: 67.99873987
A62: 69.12793559 | B62: 63.18551492
A63: 68.06412639 | B63: 69.66691164
A64: 59.77762739 | B64: 60.47022981
A65: 60.46086765 | B65: 69.84711577
A66: 61.73835915 | B66: 60.71567803
A67: 64.10204388 | B67: 63.45463551
A68: 67.44228889 | B68: 60.23083532
A69: 61.34678752 | B69: 68.35054995
A70: 66.29335028 | B70: 67.25552163
A71: 62.08128957 | B71: 70.52421983
A72: 65.41624962 | B72: 64.53031847
A73: 58.94258076 | B73: 64.80991733
A74: 61.4880163 | B74: 70.76049651
A75: 60.30989362 | B75: 62.12285488
A76: 67.76056134 | B76: 65.89229867
A77: 66.77712407 | B77: 67.26582068
A78: 67.61543444 | B78: 71.66158666
A79: 68.7833253 | B79: 60.73473923
A80: 63.45152172 | B80: 63.96407621
A81: 62.67044877 | B81: 61.7899333
A82: 69.54085648 | B82: 64.17945444
A83: 68.64834089 | B83: 67.84792779
A84: 62.4016962 | B84: 68.22939696
A85: 66.62513897 | B85: 63.05326151
A86: 69.3883657 | B86: 70.84304518
A87: 65.40198772 | B87: 61.52750771
A88: 67.15373739 | B88: 64.7887227
A89: 61.71169463 | B89: 67.28375183
A90: 66.58768018 | B90: 62.92599244
A91: 64.16464095 | B91: 67.58096082
A92: 60.26492331 | B92: 63.55499262
A93: 64.08461564 | B93: 70.58230456
A94: 68.12870091 | B94: 65.29157933
A95: 62.37061878 | B95: 67.96472327
A96: 63.47421972 | B96: 69.95525924
A97: 58.34442476 | B97: 67.64882558
A98: 60.19618956 | B98: 71.1264831
A99: 62.76428497 | B99: 61.01748983
A100: 67.80295027 | B100: 67.02356162
A101: 63.4254734 | B101: 61.95920116
A102: 61.74128444 | B102: 62.60547959
A103: 66.11242798 | B103: 68.14059724
A104: 60.36109634 | B104: 61.56122087
A105: 59.15683515 | B105: 65.41729673
A106: 58.33105477 | B106: 66.63050873
A107: 69.43981366 | B107: 69.37764828
A108: 66.66756571 | B108: 60.51080908
A109: 58.2053398 | B109: 66.46645236
A110: 65.61694334 | B110: 63.65408789
A111: 61.09666969 | B111: 68.90446968
A112: 68.14585909 | B112: 67.54154697
A113: 60.97639297 | B113: 61.15851152
A114: 58.60622462 | B114: 67.23946228
A115: 61.63839568 | B115: 69.45557149
A116: 64.02939756 | B116: 70.2277587
A117: =AVERAGE(A7:A116) -> 64.02424369 | B117: =AVERAGE(B7:B116) -> 65.71548958 | C117: Means
A118: =STDEV(A7:A116) -> 3.427193643 | B118: =STDEV(B7:B116) -> 3.339110788 | C118: St. Devs.

Sheet 3) Probability Density
B1: Problem 3 | C1: The T-test used in problem 1 assumed that the distribution of the data was Gaussian. To explore this assumption,
C2: first generate a Gaussian curve based on the mean and standard deviation of the data. You will need values
C3: for the mean and standard deviation (for women), which you can calculate from the data on the Ttest tab (they are
C4: also given in cells H21 and H22, respectively, of this spreadsheet).
C6: Specific Instructions:
C7: 1. In Column C, starting at Line 19, calculate f(x) directly from the x-values in Column B.
C8: 2. In Column D, starting at Line 19, calculate f(x) with the Excel function NORMDIST(x, mean, stdev, cumulative).
C9: 3. In Column E, starting at Line 19, calculate F(x) with the Excel function NORMDIST(x, mean, stdev, cumulative)
C10: (Notice that the value of cumulative will be 0 for Task 2 and 1 for Task 3.)
C11: 4. In Column E, starting at Line 19, claculate F(x) with the Excel function erf(a,b).
C12: (Hint: You will need to combine Eq. A1 and A4 from the tutorial.)
C13: 5. Plot, on the same graph, the probability density functions generated in Tasks 1 and 2.
C14: 6. Plot on the same graph, the cumulative probability distributions generated in Tasks 3 and 4.
B18: x | C18: f(x) (Equation) | D18: f(x) (NORMDIST) | E18: F(x) (NORMDIST) | F18: F(x) (ERF(x))
B19: 55
B20: 55.5
B21: 56 | H21: xmean= | I21: 64.02424369
B22: 56.5 | H22: sigma= | I22: 3.427193643
B23: 57
B24: 57.5
B25: 58
B26: 58.5
B27: 59
B28: 59.5
B29: 60
B30: 60.5
B31: 61
B32: 61.5
B33: 62
B34: 62.5
B35: 63
B36: 63.5
B37: 64
B38: 64.5
B39: 65
B40: 65.5
B41: 66
B42: 66.5
B43: 67
B44: 67.5
B45: 68
B46: 68.5
B47: 69
B48: 69.5
B49: 70
B50: 70.5
B51: 71
B52: 71.5
B53: 72
B54: 72.5
B55: 73
B56: 73.5
B57: 74
B58: 74.5
B59: 75
B60: Integral= | C60: =SUM(C19:C59)*0.5 -> 0

Sheet 4) Expected Number per Bin
B1: Problem 4 | C1: If you have performed the third task of spreadsheet 3 correctly, the cumulative probability distribution for the
C2: Gaussian function will appear on this spreadsheet, beginning at line 15. Use these values to determine a set of
C3: bins that should have roughly the same number of data values, assuming that the data follow the given gaussian
C4: distribution.
C6: Tasks:
C7: 1) In Column D, beginning at Line 18, calculate the number of expected data values that should be less than the
C8: value of x on the corresponding line of Column B. (For example, since there are 110 points, you know that all 110
C9: points must have a value that is less than infinity, and 55 points should have values that are less than xmean).
C10: The task reduces to simply multiplying the value in Column C by 110.
C11: 2) Find the values of x that would give roughly 10 data values in each bin. For example, start with x1 = 59.5 so that the bin
C12: from -infinity to x1 will have roughly 10 values. Then take x2 = 61 because 20.765 - 10.27 is roughly 10.
C13: Put the appropriate x values in Column F (starting with Row 18) and put the expected number of points in
C14: Column G. You will have 5 values of x in Column F. At the end of the N values in Column G, add an extra
C15: value that represents the number of data points that are expected to be larger than the last x value.
B17: x | C17: F(x) (NORMDIST()) | D17: N < x | F17: x | G17: N
B18: 55 | C18: ='3) Probability Density'!E19 -> 0
B19: 55.5 | C19: ='3) Probability Density'!E20 -> 0
B20: 56 | C20: ='3) Probability Density'!E21 -> 0
B21: 56.5 | C21: ='3) Probability Density'!E22 -> 0
B22: 57 | C22: ='3) Probability Density'!E23 -> 0
B23: 57.5 | C23: ='3) Probability Density'!E24 -> 0
B24: 58 | C24: ='3) Probability Density'!E25 -> 0
B25: 58.5 | C25: ='3) Probability Density'!E26 -> 0
B26: 59 | C26: ='3) Probability Density'!E27 -> 0
B27: 59.5 | C27: ='3) Probability Density'!E28 -> 0
B28: 60 | C28: ='3) Probability Density'!E29 -> 0
B29: 60.5 | C29: ='3) Probability Density'!E30 -> 0
B30: 61 | C30: ='3) Probability Density'!E31 -> 0
B31: 61.5 | C31: ='3) Probability Density'!E32 -> 0
B32: 62 | C32: ='3) Probability Density'!E33 -> 0
B33: 62.5 | C33: ='3) Probability Density'!E34 -> 0
B34: 63 | C34: ='3) Probability Density'!E35 -> 0
B35: 63.5 | C35: ='3) Probability Density'!E36 -> 0
B36: 64 | C36: ='3) Probability Density'!E37 -> 0
B37: 64.5 | C37: ='3) Probability Density'!E38 -> 0
B38: 65 | C38: ='3) Probability Density'!E39 -> 0
B39: 65.5 | C39: ='3) Probability Density'!E40 -> 0
B40: 66 | C40: ='3) Probability Density'!E41 -> 0
B41: 66.5 | C41: ='3) Probability Density'!E42 -> 0
B42: 67 | C42: ='3) Probability Density'!E43 -> 0
B43: 67.5 | C43: ='3) Probability Density'!E44 -> 0
B44: 68 | C44: ='3) Probability Density'!E45 -> 0
B45: 68.5 | C45: ='3) Probability Density'!E46 -> 0
B46: 69 | C46: ='3) Probability Density'!E47 -> 0
B47: 69.5 | C47: ='3) Probability Density'!E48 -> 0
B48: 70 | C48: ='3) Probability Density'!E49 -> 0
B49: 70.5 | C49: ='3) Probability Density'!E50 -> 0
B50: 71 | C50: ='3) Probability Density'!E51 -> 0
B51: 71.5 | C51: ='3) Probability Density'!E52 -> 0
B52: 72 | C52: ='3) Probability Density'!E53 -> 0
B53: 72.5 | C53: ='3) Probability Density'!E54 -> 0
B54: 73 | C54: ='3) Probability Density'!E55 -> 0
B55: 73.5 | C55: ='3) Probability Density'!E56 -> 0
B56: 74 | C56: ='3) Probability Density'!E57 -> 0
B57: 74.5 | C57: ='3) Probability Density'!E58 -> 0
B58: 75 | C58: ='3) Probability Density'!E59 -> 0

Sheet 5) Histogram and Chi Square
A1: Problem 5 | B1: 1) A set of bin values is shown in Column F, starting at Row 18. (These values are different from those that you were asked to provide in Problem 4.) Use these values
B2: and the Histogram option under "Data Analysis" to generate a histogram of the height data in Column A.
B3: 2) Create a column plot that compares the expected number of points in each bin to the number of points from the histogram.
B4: 3) For each bin, calculate the value of (O-E)2/E, where O is the observed number of data values in each bin and E is the expected number of values in each bin.
B5: 4) Given that the degrees of freedom is the number of bins minus 3 in this case, calculate the p value from the chi squared statistic.(Use CHIDIST()).
B6: 5) At the p = 0.05 level, does the test suggest that the probability distribution is significantly different from a normal distribition?
A16: Height (in.)
A17: Women | F17: Bins | G17: Expected N | H17: Histogram | I17: (O-E)2/E | N17: Bin | O17: Frequency
A18: 63.00137776 | F18: 60.5 | G18: 16.70902388 | K18: xmean= | L18: 64.02424369
A19: 63.02118035 | F19: 62 | G19: 13.80280234 | K19: sigma= | L19: 3.427193643
A20: 64.19921322 | F20: 63.5 | G20: 17.8015588
A21: 67.32412938 | F21: 65 | G21: 19.01396697
A22: 64.61896273 | F22: 66.5 | G22: 16.81949852
A23: 63.23154549 | F23: 69 | G23: 17.79320104
A24: 67.38965956 | F24: more | G24: 8.059948458
A25: 62.40503628 | H25: Sum(O-E)2= | I25: =SUM(I18:I24) -> 0
A26: 65.11086577
A27: 63.60539552 | H27: p= | I27: =CHIDIST(I25,7-3) -> 1
A28: 59.04846274
A29: 60.45433708
A30: 60.89368185
A31: 66.29292663
A32: 62.95392453
A33: 64.74143105
A34: 68.40144347
A35: 64.57157919
A36: 62.07318642
A37: 61.62212486
A38: 69.86073723
A39: 58.01865986
A40: 69.78983863
A41: 69.14460429
A42: 68.85834379
A43: 62.66470457
A44: 63.71768521
A45: 66.58923792
A46: 59.76650483
A47: 64.33683288
A48: 69.90619347
A49: 62.08771003
A50: 59.3003306
A51: 67.32818236
A52: 59.32870667
A53: 58.68318088
A54: 67.20565272
A55: 66.62679783
A56: 63.57145099
A57: 69.64736679
A58: 66.9013926
A59: 65.33304186
A60: 69.37846828
A61: 59.20587016
A62: 67.81624408
A63: 64.68550397
A64: 60.08418493
A65: 65.17486703
A66: 60.71534308
A67: 58.47439068
A68: 64.86970351
A69: 67.72278175
A70: 60.62859194
A71: 60.971216
A72: 63.05634742
A73: 69.12793559
A74: 68.06412639
A75: 59.77762739
A76: 60.46086765
A77: 61.73835915
A78: 64.10204388
A79: 67.44228889
A80: 61.34678752
A81: 66.29335028
A82: 62.08128957
A83: 65.41624962
A84: 58.94258076
A85: 61.4880163
A86: 60.30989362
A87: 67.76056134
A88: 66.77712407
A89: 67.61543444
A90: 68.7833253
A91: 63.45152172
A92: 62.67044877
A93: 69.54085648
A94: 68.64834089
A95: 62.4016962
A96: 66.62513897
A97: 69.3883657
A98: 65.40198772
A99: 67.15373739
A100: 61.71169463
A101: 66.58768018
A102: 64.16464095
A103: 60.26492331
A104: 64.08461564
A105: 68.12870091
A106: 62.37061878
A107: 63.47421972
A108: 58.34442476
A109: 60.19618956
A110: 62.76428497
A111: 67.80295027
A112: 63.4254734
A113: 61.74128444
A114: 66.11242798
A115: 60.36109634
A116: 59.15683515
A117: 58.33105477
A118: 69.43981366
A119: 66.66756571
A120: 58.2053398
A121: 65.61694334
A122: 61.09666969
A123: 68.14585909
A124: 60.97639297
A125: 58.60622462
A126: 61.63839568
A127: 64.02939756
A128: =AVERAGE(A18:A127) -> 64.02424369
A129: =STDEV(A18:A127) -> 3.427193643

Sheet 6) Chi Square for Men
B1: Problem 6 | C1: Repeat the analysis of Problems 4 and 5 for the data collected on Men
A7: Men
A8: 62.78589233
A9: 64.09129956
A10: 65.60934277
A11: 63.58248674
A12: 71.15962196
A13: 66.43394202
A14: 66.4412554
A15: 61.0214662
A16: 64.10929036
A17: 69.97750285
A18: 67.15506699
A19: 66.53369984
A20: 63.67534671
A21: 66.15267424
A22: 63.13798595
A23: 70.1543202
A24: 68.28180875
A25: 64.32127629
A26: 66.52551293
A27: 69.15298814
A28: 64.45123948
A29: 60.44698112
A30: 70.61514404
A31: 70.69815901
A32: 63.97463561
A33: 62.6407307
A34: 61.04101769
A35: 70.84468619
A36: 70.09164469
A37: 71.23712895
A38: 62.48231659
A39: 65.09722189
A40: 64.16155614
A41: 65.74245477
A42: 63.09405092
A43: 67.106249
A44: 60.55451735
A45: 62.09576702
A46: 69.87396544
A47: 63.71339188
A48: 67.55822923
A49: 64.91390342
A50: 69.25993903
A51: 60.44240959
A52: 68.80531511
A53: 66.75806377
A54: 60.89759233
A55: 71.32729739
A56: 63.68355048
A57: 61.31796536
A58: 61.96814083
A59: 61.86195576
A60: 65.01309468
A61: 66.12290112
A62: 67.99873987
A63: 63.18551492
A64: 69.66691164
A65: 60.47022981
A66: 69.84711577
A67: 60.71567803
A68: 63.45463551
A69: 60.23083532
A70: 68.35054995
A71: 67.25552163
A72: 70.52421983
A73: 64.53031847
A74: 64.80991733
A75: 70.76049651
A76: 62.12285488
A77: 65.89229867
A78: 67.26582068
A79: 71.66158666
A80: 60.73473923
A81: 63.96407621
A82: 61.7899333
A83: 64.17945444
A84: 67.84792779
A85: 68.22939696
A86: 63.05326151
A87: 70.84304518
A88: 61.52750771
A89: 64.7887227
A90: 67.28375183
A91: 62.92599244
A92: 67.58096082
A93: 63.55499262
A94: 70.58230456
A95: 65.29157933
A96: 67.96472327
A97: 69.95525924
A98: 67.64882558
A99: 71.1264831
A100: 61.01748983
A101: 67.02356162
A102: 61.95920116
A103: 62.60547959
A104: 68.14059724
A105: 61.56122087
A106: 65.41729673
A107: 66.63050873
A108: 69.37764828
A109: 60.51080908
A110: 66.46645236
A111: 63.65408789
A112: 68.90446968
A113: 67.54154697
A114: 61.15851152
A115: 67.23946228
A116: 69.45557149
A117: 70.2277587
A118: =AVERAGE(A8:A117) -> 65.71548958
A119: =STDEV(A8:A117) -> 3.339110788

Sheet 7) Generating Random Numbers
A1: Problem 7 | B1: 1) In Column A, beginning with the first number on Line 13, generate a sequence of 40 Normally distributed random numbers with a mean of 50 and a standard deviation of 5.
B2: 2) In Column B, beginning on Line 13, generate a sequence of 40 uniformly distributed random numbers with a mean of 50 and a standard deviation of 5.
B3: 3) At the bottom of each column, calculate the mean and standard deviation of the corresponding set of numbers and verify that they are approximately 50 and 5, respectively
B4: for both sets of random numbers.
B5: 4) Copy the two columns of random numbers onto columns C and D. Use the "Paste Values" option to ensure that the numbers do not change. Then sort Column C and Colum D
B6: from the lowest value to the highest value. Now plot the random numbers. (The x-axis will be the number's position, where the smallest number in each column has an x
B7: value of 1 and the largest value in each column has an x value of 40).
B8: 5) Is it possible to identify a qualitative difference between the two curves that have been generated?
C11: Sorted | D11: Sorted
A12: Normal | B12: Uniform | C12: Normal | D12: Uniform
A53: =AVERAGE(A13:A52) ->  | B53: =AVERAGE(B13:B52) -> 
A54: =STDEV(A13:A52) ->  | B54: =STDEV(B13:B52) -> 

Sheet 8) Drug Trial
A1: Problem 8: | E1: The two data sets below are from clinical trials comparing Brand X and Brand Y as blood pressure reducing drugs.
E2: Each set is systolic pressure in mm Hg. One group of subjects was given Brand X and the other was given Brand Y.
E3: Thus, it is not reasonable to use a paired T-test.
E4: 1) Use an F-test to determine whether the standard deviations of the data can be considered to be the same.
E5: 2) Use a Students T-Test (two-tailed) to determine whether the mean for Brand X is statistically different from the mean
E6: for Brand Y.
A9: Brand X | B9: Brand Y | F9: The p value for the F-test is:
A10: 155.1280662 | B10: 138.5617837 | F10: The p value for the two-tailed student's t-test is:
A11: 149.7536065 | B11: 149.0152573
A12: 152.862106 | B12: 192.0631257
A13: 153.6345879 | B13: 134.2267559
A14: 131.7508788 | B14: 122.5966044
A15: 163.3831933 | B15: 150.2744598
A16: 131.8236811 | B16: 127.9254127
A17: 106.7336138 | B17: 178.1056389
A18: 150.1307217 | B18: 133.3822967
A19: 122.890392 | B19: 126.4204331
A20: 179.8776129 | B20: 113.9959228
A21: 145.1302394 | B21: 157.6033094
A22: 132.8597669 | B22: 54.63808396
A23: 155.7347395 | B23: 100.2310869
A24: 151.7176323 | B24: 99.72971347
A25: 126.0678782 | B25: 129.1126734
A26: 109.0292667 | B26: 122.5537199
A27: 134.6579363 | B27: 109.7027068
A28: 91.56849007 | B28: 100.6322024
A29: 156.3459925 | B29: 155.7349972
A30: 123.1687335 | B30: 123.0716526
A31: 171.1002551 | B31: 150.3926028
A32: 136.3452148 | B32: 107.2814072
A33: 137.0548753 | B33: 167.8178534
A34: 110.1266026 | B34: 124.6290267
A35: 99.71145641 | B35: 125.1759159
A36: 168.9158795 | B36: 110.2325584
A37: 207.2370283 | B37: 167.3682907
A38: 147.3188749 | B38: 121.3056872
A39: 144.1568499 | B39: 104.6964649
A40: 144.1898408 | B40: 113.4835331
A41: 154.3758834 | B41: 137.2822013
A42: 146.188065 | B42: 111.6922249
A43: 84.8394111 | B43: 106.4997671
A44: 119.6379804 | B44: 169.8404912
A45: 114.0857817 | B45: 82.89097106
A46: 172.1830413 | B46: 133.6810444
A47: 144.8911221 | B47: 178.2069634
A48: 158.3468109 | B48: 168.3084219
A49: 160.0124348 | B49: 145.5380892
A50: 138.7869006 | B50: 192.5578411
A51: 151.350029 | B51: 100.4597526
A52: 192.8451305 | B52: 116.8259593
A53: 68.85581421 | B53: 158.9099607
A54: 171.8861361 | B54: 130.4074276
A55: 147.9251796 | B55: 152.1529017
A56: 171.3252863 | B56: 70.32979144
A57: 192.82573 | B57: 90.40418068
A58: 73.54866032 | B58: 92.29357873
A59: 178.2880132 | B59: 95.26066445
A60: =AVERAGE(A10:A59) -> 142.6520685 | B60: =AVERAGE(B10:B59) -> 128.9100682
A61: =SQRT(VAR(A10:A59)) -> 29.44242762 | B61: =SQRT(VAR(B10:B59)) -> 30.51314347

Sheet 9) Weight & CO
A1: Problem 9: | C1: You propose that cardiac output increases with body weight. Perform a least squares fit on the data below and
C2: use the p-statistic to determine whether your hypothesis is correct.
C6: Body Weight | D6: Cariac Output
C7: 195.2134436 | D7: 6.922649874
C8: 186.2560108 | D8: 6.966546277
C9: 191.4368434 | D9: 6.577623531
C10: 192.7243132 | D10: 4.69351851
C11: 156.2514647 | D11: 5.065769945
C12: 208.9719888 | D12: 4.780862946
C13: 156.3728018 | D13: 5.247522351
C14: 114.5560231 | D14: 5.49842608
C15: 186.8845361 | D15: 6.466817449
C16: 141.4839867 | D16: 6.691136654
C17: 236.4626881 | D17: 7.506262157
C18: 178.5503989 | D18: 6.990823877
C19: 158.0996115 | D19: 2.863322922
C20: 196.2245659 | D20: 5.679338137
C21: 189.5293872 | D21: 5.434989613
C22: 146.779797 | D22: 4.960935547
C23: 118.3821111 | D23: 4.776782442
C24: 161.0965605 | D24: 4.800706616
C25: 89.28081679 | D25: 4.056621185
C26: 197.2433208 | D26: 7.564106145
C27: 141.9478892 | D27: 4.595283318
C28: 221.8337585 | D28: 6.222101217
E31: The p statistic for this data set is:

Sheet 10) Multivariable Fit
B2: This exercise has not yet been written.

Sheet 11) Quiz
A1: For each condition below, state which statistical test you should use. (F-test, T-test, Chi square, Pearson's)
N2: Answer
A3: 1) | B3: You wish to compare the means of two data sets.
A4: 2) | B4: You wish to compare the standard deviations of two data sets.
A5: 3) | B5: You wish to compare the distribution of a data set to a hypothesized distribution.
A6: 4) | B6: You wish to determine whether one variable depends on another variable.
A9: State which type of T-test you should use in the following situations. (paired/unpaired, 1 tailed/2 tailed)
A11: 1) | B11: You have data for heart rate for before and after exercise for 15 people and you propose that exercise increases heart rate.
A12: 2) | B12: You have data for heart rate after exercise for men and women and you propose that the post-exercise heart rate will be higher
B13: for women.
A14: 3) | B14: You have data for heart rate for before and after exercise for 15 people and you propose that exercise changes heart rate.
A16: What statistical test would you use for the following situation?
A17: 1) | B17: You have data for heart rate after exercise for 20 different exercise durations and you propose that the heart rate will correlate
B18: with the duration of the exercise.

Sheet notes
A2: For problem 1, the original distributions are uniform with means of 62 and 66 inches | I2: max and min are +/-4 from mean.
C3: =62+(RAND()-0.5)*8 -> 63.61799415 | D3: =66+(RAND()-0.5)*8 -> 67.75001088
A5: answer: p = 0.0001554 indicates that the difference in means is singificant.
C11: Bin (Normalized) | D11: Bin (Non-Normalized) | E11: O | F11: E | G11: (O-E)2/E
C12: -1.2 | D12: 4.675623183 | E12: 6 | F12: 5.753486718 | G12: 0.01056208195
C13: -0.7 | D13: 4.831203116 | E13: 8 | F13: 6.344695932 | G13: 0.4318617609
C14: -0.4 | D14: 4.924551076 | E14: 6 | F14: 5.130730271 | G14: 0.1472753043
C15: 0 | D15: 5.049015023 | E15: 8 | F15: 7.771087079 | G15: 0.006743088176
C16: 0.4 | D16: 5.17347897 | E16: 3 | F16: 7.771087079 | G16: 2.929226205
C17: 0.7 | D17: 5.26682693 | E17: 7 | F17: 5.130730271 | G17: 0.6810276774
C18: 1.2 | D18: 5.422406863 | E18: 5 | F18: 6.344695932 | G18: 0.2849950839
C19: 10 | D19: 8.160613691 | E19: 7 | F19: 5.753486718 | G19: 0.2700615189
D20: More | E20: 0 | G20: 4.761752721 | H20: =chi^2
C24: Lower critical values of chi-square distribution with degrees of
C25: freedom
C28: Probability of exceeding the critical value
C29: 0.90 0.95 0.975 0.99 0.999
C33: 1. .016 .004 .001 .000 .000
C34: 2. .211 .103 .051 .020 .002
C35: 3. .584 .352 .216 .115 .024
C36: 4. 1.064 .711 .484 .297 .091
C37: 5. 1.610 1.145 .831 .554 .210
C38: 6. 2.204 1.635 1.237 .872 .381

Sheet Gaussians
A1: Problem 6:
E6: Brand X | F6: Brand Y
A7: 0.8556905392 | B7: 0.547435726 | C7: =SQRT(-2*LN(A7))*COS(2*3.14159*A8) -> 0.504268872 | D7: =SQRT(-2*LN(B7))*COS(2*3.14159*B8) -> 0.2853927911 | E7: =140+C7*30 -> 155.1280662 | F7: =130+D7*30 -> 138.5617837
A8: 0.9294064017 | B8: 0.7918592336 | C8: =SQRT(-2*LN(A8))*COS(2*3.14159*A9) -> 0.3251202165 | D8: =SQRT(-2*LN(B8))*COS(2*3.14159*B9) -> 0.6338419087 | E8: =140+C8*30 -> 149.7536065 | F8: =130+D8*30 -> 149.0152573
A9: 0.911597802 | B9: 0.06086020036 | C9: 0.4287368682 | D9: 2.068770855 | E9: 152.862106 | F9: 192.0631257
A10: 0.013340185 | B10: 0.9193547353 | C10: 0.4544862633 | D10: 0.1408918627 | E10: 153.6345879 | F10: 134.2267559
A11: 0.2252839036 | B11: 0.1941818995 | C11: -0.2749707058 | D11: -0.2467798546 | E11: 131.7508788 | F11: 122.5966044
A12: 0.7245443659 | B12: 0.2717615235 | C12: 0.7794397753 | D12: 0.6758153282 | E12: 163.3831933 | F12: 150.2744598
A13: 0.9615442024 | B13: 0.1812488168 | C13: -0.2725439645 | D13: -0.06915290922 | E13: 131.8236811 | F13: 127.9254127
A14: 0.5369383644 | B14: 0.2559566693 | C14: -1.108879539 | D14: 1.603521296 | E14: 106.7336138 | F14: 178.1056389
A15: 0.483004157 | B15: 0.9617762787 | C15: 0.3376907217 | D15: 0.112743222 | E15: 150.1307217 | F15: 133.3822967
A16: 0.7951530474 | B16: 0.8161601368 | C16: -0.570320265 | D16: -0.1193188957 | E16: 122.890392 | F16: 126.4204331
A17: 0.4094055748 | B17: 0.7200309881 | C17: 1.329253763 | D17: -0.5334692397 | E17: 179.8776129 | F17: 113.9959228
A18: 0.9834774256 | B18: 0.6356613321 | C18: 0.1710079786 | D18: 0.9201103134 | E18: 145.1302394 | F18: 157.6033094
A19: 0.9431235383 | B19: 0.04126919337 | C19: -0.2380077704 | D19: -2.512063868 | E19: 132.8597669 | F19: 54.63808396
A20: 0.6275969962 | B20: 0.5160750493 | C20: 0.5244913172 | D20: -0.9922971021 | E20: 155.7347395 | F20: 100.2310869
A21: 0.841426982 | B21: 0.5843856958 | C21: 0.3905877435 | D21: -1.009009551 | E21: 151.7176323 | F21: 99.72971347
A22: 0.8657168254 | B22: 0.4632455838 | C22: -0.4644040594 | D22: -0.02957755173 | E22: 126.0678782 | F22: 129.1126734
A23: 0.416269321 | B23: 0.7462056915 | C23: -1.032357778 | D23: -0.2482093355 | E23: 109.0292667 | F23: 122.5537199
A24: 0.3923286274 | B24: 0.6974230624 | C24: -0.1780687908 | D24: -0.6765764394 | E24: 134.6579363 | F24: 109.7027068
A25: 0.2707765735 | B25: 0.6032228931 | C25: -1.614383664 | D25: -0.9789265859 | E25: 91.56849007 | F25: 100.6322024
A26: 0.5080558214 | B26: 0.4633601691 | C26: 0.5448664159 | D26: 0.8578332384 | E26: 156.3459925 | F26: 155.7349972
A27: 0.8275487225 | B27: 0.8715473056 | C27: -0.561042217 | D27: -0.2309449129 | E27: 123.1687335 | F27: 123.0716526
A28: 0.567330421 | B28: 0.6774156148 | C28: 1.03667517 | D28: 0.6797534282 | E28: 171.1002551 | F28: 150.3926028
A29: 0.9633912113 | B29: 0.1100801719 | C29: -0.1218261729 | D29: -0.7572864278 | E29: 136.3452148 | F29: 107.2814072
A30: 0.6764134385 | B30: 0.3086948677 | C30: -0.09817082495 | D30: 1.260595114 | E30: 137.0548753 | F30: 167.8178534
A31: 0.2677063195 | B31: 0.9036221957 | C31: -0.9957799148 | D31: -0.1790324436 | E31: 110.1266026 | F31: 124.6290267
A32: 0.3550908417 | B32: 0.6849108123 | C32: -1.342951453 | D32: -0.1608028019 | E32: 99.71145641 | F32: 125.1759159
A33: 0.5584831462 | B33: 0.7204144108 | C33: 0.9638626508 | D33: -0.6589147204 | E33: 168.9158795 | F33: 110.2325584
A34: 0.07430599976 | B34: 0.4012549921 | C34: 2.241234277 | D34: 1.245609688 | E34: 207.2370283 | F34: 167.3682907
A35: 0.9705506625 | B35: 0.9366043062 | C35: 0.2439624973 | D35: -0.2898104282 | E35: 147.3188749 | F35: 121.3056872
A36: 0.9893836997 | B36: 0.6022177663 | C36: 0.138561662 | D36: -0.8434511711 | E36: 144.1568499 | F36: 104.6964649
A37: 0.9486416284 | B37: 0.592009879 | C37: 0.1396613593 | D37: -0.5505488976 | E37: 144.1898408 | F37: 113.4835331
A38: 0.8207592572 | B38: 0.3403487536 | C38: 0.4791961148 | D38: 0.242740042 | E38: 154.3758834 | F38: 137.2822013
A39: 0.8879919693 | B39: 0.7764356561 | C39: 0.2062688336 | D39: -0.6102591706 | E39: 146.188065 | F39: 111.6922249
A40: 0.1804572492 | B40: 0.585905252 | C40: -1.838686297 | D40: -0.7833410964 | E40: 84.8394111 | F40: 106.4997671
A41: 0.4819716661 | B41: 0.3868070245 | C41: -0.6787339857 | D41: 1.328016374 | E41: 119.6379804 | F41: 169.8404912
A42: 0.6550600243 | B42: 0.04311485306 | C42: -0.8638072771 | D42: -1.570300965 | E42: 114.0857817 | F42: 82.89097106
A43: 0.5558258789 | B43: 0.642298937 | C43: 1.072768043 | D43: 0.1227014788 | E43: 172.1830413 | F43: 133.6810444
A44: 0.9772834889 | B44: 0.2291870339 | C44: 0.1630374046 | D44: 1.606898781 | E44: 144.8911221 | F44: 178.2069634
A45: 0.1124718384 | B45: 0.05718646665 | C45: 0.6115603647 | D45: 1.276947398 | E45: 158.3468109 | F45: 168.3084219
A46: 0.7972518186 | B46: 0.8396160057 | C46: 0.6670811584 | D46: 0.5179363052 | E46: 160.0124348 | F46: 145.5380892
A47: 0.02143736402 | B47: 0.08011907211 | C47: -0.04043664744 | D47: 2.085261371 | E47: 138.7869006 | F47: 192.5578411
A48: 0.7476790606 | B48: 0.06073418063 | C48: 0.3783343011 | D48: -0.9846749144 | E48: 151.350029 | F48: 100.4597526
A49: 0.1673809044 | B49: 0.6817149282 | C49: 1.76150435 | D49: -0.4391346884 | E49: 192.8451305 | F49: 116.8259593
A50: 0.05918952282 | B50: 0.3336372436 | C50: -2.37147286 | D50: 0.9636653573 | E50: 68.85581421 | F50: 158.9099607
A51: 0.5116305674 | B51: 0.862696533 | C51: 1.062871204 | D51: 0.01358092059 | E51: 171.8861361 | F51: 130.4074276
A52: 0.9351298695 | B52: 0.7539780494 | C52: 0.2641726532 | D52: 0.738430057 | E52: 147.9251796 | F52: 152.1529017
A53: 0.1217751463 | B53: 0.02974989195 | C53: 1.044176209 | D53: -1.989006952 | E53: 171.3252863 | F53: 70.32979144
A54: 0.1650391596 | B54: 0.3850158739 | C54: 1.760857666 | D54: -1.319860644 | E54: 192.82573 | F54: 90.40418068
A55: 0.06091350832 | B55: 0.4522247787 | C55: -2.215044656 | D55: -1.256880709 | E55: 73.54866032 | F55: 92.29357873
A56: 0.4428922069 | B56: 0.510878333 | C56: 1.276267107 | D56: -1.157977852 | E56: 178.2880132 | F56: 95.26066445
B57: =AVERAGE(B7:B56) -> 0.5066379213 | C57: =AVERAGE(C7:C56) -> 0.08840228235 | E57: =AVERAGE(E7:E56) -> 142.6520685 | F57: =AVERAGE(F7:F56) -> 128.9100682
B58: =SQRT(VAR(B7:B56)) -> 0.2818750167 | C58: =SQRT(VAR(C7:C56)) -> 0.9814142542 | E58: =SQRT(VAR(E7:E56)) -> 29.44242762 | F58: =SQRT(VAR(F7:F56)) -> 30.51314347
